Cogmind - Beta 11.1 @@@ ROGUE MODE // 2022.07.09 @ 15:07:00 Player: HeartGrenade Result: Self-destructed Performance ------------- Evolutions (1) 500 Regions Visited (3) 600 Robots Destroyed (54) 270 Value Destroyed (1487) 1487 Prototype IDs (7) 140 Alien Tech Used (0) 0 Bonus (70) 70 TOTAL SCORE: 3067 Bonus ------- High Alert Combat Kills 63 Follower Combat Kills 7 Cogmind --------- Core Integrity 103/400 Matter 300/300 Energy 125/125 System Corruption 4% Temperature Cool (0) Movement Treading (160) Location -9/Mines Parts ------- > --- POWER (1) -------- Light Ion Engine > --- PROPULSION (2) --- Light Treads Light Treads > --- UTILITY (3) ------ Heat Sink Large Storage Unit > --- WEAPON (3) ------- Spread Laser > --- INVENTORY (15) --- Ion Engine Improved Treads Improved Treads Armored Wheel Heat Sink Huge Storage Unit Hardened Light Armor Plating Particle Gun Spread Laser Spread Laser Spread Laser Spread Laser Grenade Launcher Peak State ------------ > --- POWER ------------ Improved Ion Engine > --- PROPULSION ------- Light Treads Improved Treads > --- UTILITY ---------- Cooling System Large Storage Unit Improved Targeting Computer > --- WEAPON ----------- Particle Gun Spread Laser Advanced Beam Cannon > --- INVENTORY -------- Ion Engine Improved Ion Engine Light Treads Improved Treads Improved Treads Armored Wheel Heat Sink Huge Storage Unit Light Armor Plating Particle Gun Spread Laser Spread Laser Spread Laser Spread Laser Grenade Launcher [Rating: 19] Favorites ----------- Power Ion Engine Engine Ion Engine Propulsion Improved Treads Treads Improved Treads Utility Improved Targeting Computer Device Cooling System Storage Large Storage Unit Processor Improved Targeting Computer Weapon Spread Laser Energy Gun Spread Laser Energy Cannon Advanced Beam Cannon Ballistic Gun Assault Rifle Launcher Grenade Launcher Build | -11 -10 -9 -9 ------- Run | Scr Mat Mat Min Slots Evolved 2 | . . 2 . Power . | . . . . Propulsion . | . . . . Utility 1 | . . 1 . Weapon 1 | . . 1 . Parts Attached 35 | 6 6 14 9 Power 10 | 1 1 5 3 Engine 10 | 1 1 5 3 Core . | . . . . Reactor . | . . . . Propulsion 8 | 2 2 2 2 Treads 8 | 2 2 2 2 Leg . | . . . . Wheel . | . . . . Hover . | . . . . Flight . | . . . . Utility 8 | 1 2 4 1 Device 4 | . 1 2 1 Storage 3 | 1 1 1 . Processor 1 | . . 1 . Hackware . | . . . . Protection . | . . . . Artifact . | . . . . Weapon 9 | 2 1 3 3 Energy Gun 6 | 1 1 2 2 Energy Cannon 1 | . . 1 . Ballistic Gun 1 | 1 . . . Ballistic Cannon . | . . . . Launcher 1 | . . . 1 Special Weapon . | . . . . Impact Weapon . | . . . . Slashing Weapon . | . . . . Piercing Weapon . | . . . . Special Melee Weapon . | . . . . Unidentified Prototypes . | . . . . Parts Lost 11 | . . 3 8 Power 3 | . . 1 2 Propulsion 1 | . . . 1 Utility 2 | . . . 2 Weapon 5 | . . 2 3 Highest Loss Streak 3 | . . 1 3 To Critical Strikes . | . . . . Average Slot Usage (%) 94 | . 92 93 98 Engine 11 | . 14 11 11 Treads 23 | . 28 21 21 Device 10 | . 6 11 11 Storage 11 | . 14 11 11 Processor 7 | . . 10 10 Energy Gun 15 | . 14 14 20 Energy Cannon 5 | . . 5 10 Ballistic Gun 7 | . 14 7 . Naked Turns . | . . . . Heaviest Build 92 | 13 91 92 39 Greatest Support 52 | 40 46 52 43 Greatest Overweight (x) 1 | . 1 1 . Average Overweight (x) . | . . . . Largest Inventory Capacity 25 | 8 25 25 15 Average Capacity 18 | 7 19 19 15 Most Carried 15 | 1 12 15 15 Average Carried 11 | . 8 13 13 Final Capacity 25 | 8 25 15 15 Final Carried 15 | 1 12 15 13 Class Distribution -------------------- 56% | Mutant 43% | Gunner Dominant Class ---------------- Mutant | -10/Materials Gunner | -9/Materials Gunner | -9/Mines Resources | -11 -10 -9 -9 ----------- Run | Scr Mat Mat Min Matter Collected 690 | 210 142 253 85 Remotely . | . . . . Salvage Created 1650 | . 256 1092 302 Parts 100 | . 21 61 18 Haulers Intercepted 3 | . 1 2 . Recyclers Shooed . | . . . . Parts Field Recycled . | . . . . Retrieved Matter . | . . . . Parts Self-Destructed . | . . . . Prevented . | . . . . Kills | -11 -10 -9 -9 ------- Run | Scr Mat Mat Min Combat Hostiles Destroyed 47 | . 7 26 14 Guns 39 | . 7 21 11 Cannons 6 | . . 5 1 AOE 2 | . . . 2 Classes Destroyed 12 | . 4 4 4 Worker 2 | . . 2 . Builder 1 | . . 1 . Hauler 3 | . 1 2 . Recycler 1 | . . . 1 Operator 1 | . . 1 . Watcher 3 | . 1 2 . Swarmer 12 | . 3 4 5 Grunt 22 | . 4 15 3 Brawler 1 | . . . 1 Duelist 1 | . . . 1 Sentry 7 | . . 7 . Assembled 4 | . . . 4 Best Kill Streak 5 | . 3 5 3 Combat Bots Only 5 | . 3 5 3 Max Kills in Single Turn 3 | . 2 3 1 Gunslinging 1 | . 1 . . Exploded 1 | . . . 1 Melee . | . . . . Uniques/NPCs Destroyed . | . . . . Combat | -11 -10 -9 -9 -------- Run | Scr Mat Mat Min Damage Taken 1926 | . 246 738 942 Core 324 | . 27 116 181 Absorbed by Shields . | . . . . Core Remaining (%) 94 | 100 89 . . Volleys Fired 93 | . 14 56 23 Largest 3 | . 2 3 3 Hottest 198 | . 85 198 198 Shots Fired 222 | . 28 136 58 Gun 174 | . 28 110 36 Cannon 46 | . . 26 20 Launcher 2 | . . . 2 Special . | . . . . Kinetic 50 | . 14 36 . Thermal 170 | . 14 100 56 Explosive 2 | . . . 2 Electromagnetic . | . . . . Robot Hit Streak 33 | . 9 33 19 Robot Miss Streak 6 | . 6 5 5 Penetration Max . | . . . . Secondary Targets 4 | . 2 2 . Max Gunslinging Chain 1 | . 1 1 . Shots Hit Robots 172 | . 22 108 42 Core Hits 187 | . 27 104 56 Critical Kills . | . . . . Critical Parts Destroyed . | . . . . Critical Strikes . | . . . . Melee Attacks . | . . . . Impact . | . . . . Slashing . | . . . . Piercing . | . . . . Sneak Attacks . | . . . . Combat Hostiles . | . . . . Follow-up Attacks . | . . . . Damage Inflicted 3506 | . 327 2290 889 Guns 2145 | . 327 1392 426 Cannons 535 | . . 343 192 Explosions 826 | . . 555 271 Melee . | . . . . Ramming . | . . . . Kinetic 461 | . 130 331 . Thermal 2774 | . 197 1959 618 Explosive 271 | . . . 271 Electromagnetic . | . . . . Impact . | . . . . Slashing . | . . . . Piercing . | . . . . Highest Corruption 4 | . 2 . 4 Average Corruption 2 | . 2 . 4 Corruption Purged . | . . . . Corruption Blocked . | . . . . Overload Shots . | . . . . Overflow Damage 332 | . . 320 12 Projectiles 3 | . . . 3 Explosions 329 | . . 320 9 Melee . | . . . . Knockbacks . | . . . . Impact . | . . . . Kinetic . | . . . . Secondary . | . . . . Self-Inflicted Damage . | . . . . Shots . | . . . . Rammed . | . . . . Targets Rammed . | . . . . Kicked . | . . . . Crushed . | . . . . Highest Temperature 360 | . 27 360 273 Average Temperature 86 | . 13 97 95 Received Heat Transfer 477 | . 111 321 45 Effects 2 | . . . 2 Interference 2 | . . . 2 Siege Activations . | . . . . Robots Corrupted . | . . . . Combat Hostiles . | . . . . Parts Fried . | . . . . Impact Corruptions . | . . . . Robots Melted . | . . . . Combat Hostiles . | . . . . Parts Melted 4 | . . 2 2 Heat Transferred 3652 | . 250 2510 892 Parts Sabotaged . | . . . . Parts Stolen . | . . . . Parts Stripped . | . . . . Power Chain Reactions . | . . . . Missiles Intercepted . | . . . . Alert | -11 -10 -9 -9 ------- Run | Scr Mat Mat Min Peak Influence 580 | . 121 580 391 Initial 226 | . . . 226 Average 203 | . 68 243 298 Maximum Alert Level 2 | . . 2 1 Low Security (%) 50 | 100 100 41 4 Level 1 38 | . . 35 95 Level 2 11 | . . 23 . Level 3 . | . . . . Level 4 . | . . . . Level 5 . | . . . . High Security . | . . . . Max Security . | . . . . Squads Dispatched 2 | . . 2 . Investigation . | . . . . Extermination . | . . . . Reinforcement 2 | . . 2 . Assault . | . . . . Garrison . | . . . . Intercept . | . . . . Searches Triggered . | . . . . Construction Impeded . | . . . . Haulers Reinforced . | . . . . Active Scanning Responses . | . . . . Cargo Convoy Interrupts . | . . . . Stealth | -11 -10 -9 -9 --------- Run | Scr Mat Mat Min Distress Signals 5 | . . 5 . Communications Jammed . | . . . . Distress Signals . | . . . . Times Spotted 69 | . 11 34 24 Peak Tracking Total 8 | . 4 7 8 Tactical Retreats 3 | . . 1 2 Traps | -11 -10 -9 -9 ------- Run | Scr Mat Mat Min Traps Triggered 2 | . 2 . . Indirectly . | . . . . Trap Hack Attempts . | . . . . Triggered . | . . . . Disarmed . | . . . . Reprogrammed . | . . . . Reused . | . . . . Traps Extracted . | . . . . Installed . | . . . . Triggered . | . . . . Machines | -11 -10 -9 -9 ---------- Run | Scr Mat Mat Min Machines Disabled 6 | . 1 5 . Max in Single Turn 4 | . 1 4 . Machines Sabotaged . | . . . . Garrisons Compromised . | . . . . Overloaded Fab Kills . | . . . . Hacking | -11 -10 -9 -9 --------- Run | Scr Mat Mat Min Machines Accessed 12 | . 6 6 . Terminals 11 | . 6 5 . Fabricators . | . . . . Repair Stations . | . . . . Recycling Units . | . . . . Scanalyzers 1 | . . 1 . Garrison Access . | . . . . Total Hacks 45 | . 20 25 . Successful 26 | . 9 17 . Failed 19 | . 11 8 . Catastrophic 2 | . 2 . . Database Lockouts . | . . . . Manual 28 | . 15 13 . Terminals 41 | . 20 21 . Fabricators . | . . . . Repair Stations . | . . . . Recycling Units . | . . . . Scanalyzers 4 | . . 4 . Garrison Access . | . . . . Terminal Hacks 18 | . 7 11 . Part Schematic 1 | . . 1 . Robot Analysis 4 | . 3 1 . Prototype ID Bank 5 | . 3 2 . Emergency Access Points 2 | . . 2 . Terminal Index 2 | . 1 1 . Alert Level 1 | . . 1 . Locate Traps 1 | . . 1 . Zone Layout 2 | . . 2 . Fabricator Hacks . | . . . . Repair Station Hacks . | . . . . Recycling Unit Hacks . | . . . . Scanalyzer 4 | . . 4 . Insert Component 2 | . . 2 . Analyze 2 | . . 2 . Garrison Access Hacks . | . . . . Unauthorized Hacks 4 | . 2 2 . Terminals 4 | . 2 2 . Assimilate 1 | . 1 . . Botnet 3 | . 1 2 . Fabricators . | . . . . Repair Stations . | . . . . Recycling Units . | . . . . Scanalyzers . | . . . . Garrison Access . | . . . . Data Cores Recovered . | . . . . Used . | . . . . Hacking Detections 10 | . 6 4 . Full Trace Events 1 | . 1 . . Feedback Events . | . . . . Feedback Blocked . | . . . . Robot Schematics Acquired . | . . . . Robots Built . | . . . . Authchips . | . . . . Time . | . . . . Total Robot Build Rating . | . . . . Part Schematics Acquired 3 | . . 3 . Parts Built . | . . . . Authchips . | . . . . Time . | . . . . Total Part Build Rating . | . . . . Parts Repaired . | . . . . Time . | . . . . Parts Recycled . | . . . . Recycled Matter . | . . . . Retrieved Matter . | . . . . Retrieved Components . | . . . . Parts Scanalyzed 2 | . . 2 . Part Schematics Acquired 2 | . . 2 . Parts Damaged 1 | . . 1 . Bothacking | -11 -10 -9 -9 ------------ Run | Scr Mat Mat Min Used RIF Installer . | . . . . Robots Hacked . | . . . . Non-combat . | . . . . Combat . | . . . . Robot Hacks Applied . | . . . . Relay Couplers Released . | . . . . Fabnet Peak Effective % . | . . . . Robots Rewired . | . . . . Allies Hacked . | . . . . Hacks Repelled . | . . . . Allies | -11 -10 -9 -9 -------- Run | Scr Mat Mat Min Total Allies 2 | . 1 . 1 Largest Group 1 | . 1 . 1 Highest-Rated Group 31 | . 10 . 31 Highest-Rated Ally 31 | . 10 . 31 Total Orders . | . . . . Ally Attacks 10 | . . . 10 Total Damage 106 | . . . 106 Kills 1 | . . . 1 Allies Corrupted . | . . . . Allies Melted . | . . . . Intel | -11 -10 -9 -9 ------- Run | Scr Mat Mat Min Robot Analysis Total 4 | . 3 1 . Derelict Logs Recovered 2 | . . . 2 Drone Launches . | . . . . Drone Recoveries . | . . . . Exploration | -11 -10 -9 -9 ------------- Run | Scr Mat Mat Min Turns Passed 2993 | 55 819 1471 648 Spaces Moved 1340 | 30 352 612 346 Core 2 | 2 . . . Treads 1338 | 28 352 612 346 Legs . | . . . . Wheels . | . . . . Hover . | . . . . Flight . | . . . . Fastest Speed 50 | 50 160 160 160 Average Speed 186 | 152 208 191 160 Slowest Speed 240 | 160 240 240 160 Overloaded Moves . | . . . . Propulsion Burnouts . | . . . . Robots Hopped . | . . . . Cave-ins Triggered . | . . . . Exploration Rate (%) 54 | 3 63 73 80 Regions Visited 3 Branch Regions 1 Pre-discovered Areas . | . . . . Known Exits Taken . | . . . . Unknown Exits Taken 3 | 1 1 1 . Scrap Searched 2 | . . . 2 Spaces Dug . | . . . . Terrain Destroyed 15 | . . 7 8 Melee . | . . . . Projectile 2 | . . . 2 AOE 13 | . . 7 6 Terrain Rammed . | . . . . Walls Destroyed . | . . . . Machines Disabled . | . . . . Actions | -11 -10 -9 -9 --------- Run | Scr Mat Mat Min Total 1640 | 36 415 798 391 Wait 131 | . 21 100 10 Move 1337 | 29 351 611 346 Hop . | . . . . Pick Up 24 | 1 14 7 2 Fast Attach 15 | 6 4 5 . Attach 9 | . . 3 6 Detach 5 | . 2 2 1 Swap 11 | . 2 6 3 Drop 15 | . 7 8 . Fire 93 | . 14 56 23 Melee . | . . . . Ram . | . . . . Kick . | . . . . Crush . | . . . . Escape Stasis . | . . . . Rewire . | . . . . Trap . | . . . . Miscellaneous . | . . . . Route ------- -11/Scrapyard -10/Materials (discovered 2 exits: *Mat x2) -9/Materials (discovered 4 exits: *Mat / [*Min x2] / [*Sto]) -9/Mines (discovered 2 exits: *Mat x2) History --------- Turn | Location | Event 16 | -11/Scrapyard | Discovered new exit (range 16) 56 | -11/Scrapyard | Entered Materials 297 | -10/Materials | Discovered new exit (range 13) 312 | -10/Materials | Build established: Mutant 712 | -10/Materials | Discovered new exit (range 14) 875 | -10/Materials | Entered another Materials area 875 | -9/Materials | Evolved 2 slots: Utility x1, Weapon x1 1557 | -9/Materials | Discovered new exit (range 16) 1812 | -9/Materials | Discovered new exit (range 15) 1879 | -9/Materials | Build established: Gunner 2093 | -9/Materials | Discovered new exit (range 15) 2301 | -9/Materials | Discovered new exit (range 12) 2346 | -9/Materials | Entered Mines 2465 | -9/Mines | Discovered new exit (range 5) 2668 | -9/Mines | Identified exit to Materials 2703 | -9/Mines | Received a Mining Laser from a helpful Derelict 2860 | -9/Mines | Assembled infested the area 2873 | -9/Mines | Learned Materials stockpile data 2911 | -9/Mines | Core integrity fell below 50% 2941 | -9/Mines | Lost 3 parts (1p1n1w) 2994 | -9/Mines | Self-destructed Last Messages --------------- 02934_ U-05 Engineer builds a Wall. 02936_ K-01 Serf collects debris. 02938_ U-05 Engineer lays Concrete. 02938_ as-80324 sneak attacks. 02938_ K-01 Serf destroyed. 02939_ U-05 Engineer lays Concrete. 02951_ as-80324 sneak attacks. 02951_ R-06 Scavenger system corrupted by crushing effect. 02951_ R-06 Scavenger destroyed. 02953_ T-07 Excavator destroyed. 02954_ R-06 Scavenger destroyed. 02955_ as-80324 destroyed. 02957_ as-31099 destroyed. 02957_ Destroyed Asb. Hover Unit. 02977_ Acquired 60 matter. 02984_ Imp. Targeting Computer destroyed. 02984_ System corrupted by crushing effect (+4). 02985_ as-09022 sneak attacks. 02985_ R-06 Scavenger destroyed. 02987_ Adv. Beam Cannon destroyed. Map ----- +----------------------------------------------------+ | ??????????????????????????????????????????? | | ??????????????????????????????????????????? | | ??????????????????????????????????????????? | | ?????????????????????####?#####???????????? | | ?????????????????????# #???????????? | | ?????????????????????# """ #???????????? | | ?????????????????????# """ #???????????? | | ?????????????????????# """ #???????????? | | ?????????????????????# #???????????? | | ?????????????????????# """ #???????????? | | ?????????????????????# """ #???????????? | | ?????????????????????# """ #???????????? | | ??????????????????#### #???????????? | | ??????????????????# #???????????? | | ??????????????????# ## #???????????? | | ??####????????????# ###########???????????? | | ### ##???????????# #?????????????????????? | | # ##??????????# #????????????###??????? | | ##?????????# ##????###???# #??????? | | ##???????## ##??## #### #??????? | | #???????# ##?# #???????? | | #???????# #?# < #?????????? | | #== ##??????# #??# #??????????? | | # %[! ##?????## =!#### #####??????? | | ?#=%[ ######### [=% %% ## ##?????? | | ?# ##%%##@## ##! ##????? | | ?# ###### ######a#?###% ##???? | | ## ##????# #????#a#??# ##??? | | # ###### #?????#=######a#### #??? | | ##???# #?????#%[!! #??? | | ##??# #?????############ #??? | | # ##?# #????????????????# #####??? | | # ### #????????????????# ##??????? | | ## ????????????????# #???????? | | ####????????????????# #???????? | | #??????????????????## ##???????? | | #??????????????????## #????????? | | #???????????######## #????????? | | *% ### #???????# #????????? | | =##??# #???????????######## ####?????? | | ##????# ##?????????????????# #?????? | | ##??????###??????????????????# #?????? | | ?????????????????????????????# """ #?????? | | ?????????????????????????????# """ #?????? | | ?????????????????????????????# """ #?????? | | ?????????????????????????????# #?????? | | ?????????????????????????????### ####?????? | | ???????????????????????????????#%#????????? | | ???????????????????????????????# #????????? | | ???????????????????????????????# #????????? | +----------------------------------------------------+ Best States ------------- Heat Dissipation 50 Energy Generation 12 Energy Capacity 265 Matter Stores 300 Matter Capacity 300 Sight Range 16 Terrain Scan Density 10 Additional Mass Support 6 Evasion (%) 40 Targeting Accuracy 6 Recoil Reduction 2 Item Schematics ----------------- Arm. Wheel | -9/Materials | Scanalyzed Imp. Treads | -9/Materials | Scanalyzed Hcp. Storage Unit | -9/Materials | Hacked Robot Schematics ------------------ None Fabricated ------------ Nothing Alien Tech Used ----------------- None Achievements -------------- None Challenges ------------ None Game ------ Seed DecoderChipKatana Manual? 0 Play Time 00:25:41 Cumulative 84.4 hours Start 2022.07.09 @ 14:40:47 End 2022.07.09 @ 15:07:00 Sessions 1 Manual Loads 0 Difficulty Rogue Special Mode None Game No. 42 Rogue 42 Adventurer 0 Explorer 0 Win Type - Total 2 Types 2/0/0/0/0/0/0/0/0 Lore% 56 Gallery% 55 Achievement% 46 Wizard Run 0 Options --------- ASCII 0 Keyboard 1 Movement Numpad Keybinds 0 Fullscreen 2 Font 18/X11 Map View 76x50 Tactical HUD 1 Map Filters NONE Filters NONE Steam 1 RUN: c64ceea4-82de-4f2b-a976-dbece02fecbf